fUST/lending_fUST_20240310
["ID","MTS","AMOUNT","RATE_DAILY","PERIOD"]
[317924503,1710000112454,245.41268542,0.000189,2]
[317924504,1710000126405,2104.6678842,0.00019523,2]
[317924505,1710000133896,558.30663003,0.0002,2]
[317924506,1710000138705,1606.48981594,0.0002,2]
[317924507,1710000142612,429.16778282,0.0002,2]
[317924508,1710000153167,404.45303566,0.0002,2]
[317924509,1710000155057,290.48375637,0.0002,2]
[317924510,1710000157745,539.11478711,0.0002,2]
[317924511,1710000162834,8483.31914827,0.0002,2]
[317924512,1710000166324,10079.91888228,0.0002,2]
[317927405,1710000484753,-13733.06492712,0.00018896,2]
[317927406,1710000484773,-1198.93507288,0.00018897,2]
[317927606,1710000632910,-624.23888742,0.0001889,2]
[317927608,1710000632920,-155.14117847,0.00018891,2]
[317927611,1710000632929,-401.36644907,0.00018892,2]
[317927614,1710000632938,-91.29855683,0.000189,2]
[317928001,1710000638914,-72.30990012,0.000189,2]
[317928003,1710000638924,-2114.85760717,0.00019998,2]
[317928005,1710000638934,-300.0,0.00019999,2]
[317928007,1710000638943,-1387.66495321,0.00019999,2]
[317928133,1710000646838,-19116.88835695,0.00019999,2]
[317928135,1710000646848,-8483.31914827,0.0002,2]
[317928137,1710000646857,-181.07569678,0.0002,2]
[317928139,1710000646866,-200.52066789,0.00020003,2]
[317928141,1710000646875,-558.98573491,0.00020017,2]
[317928143,1710000646886,-171.440543,0.00020216,2]
[317928145,1710000646896,-295.090704,0.00020293,2]
[317928147,1710000646904,-167.419657,0.00020779,2]
[317928149,1710000646914,-176.38342666,0.00021,2]
[317928151,1710000646923,-171.440543,0.00021594,2]
[317928153,1710000646931,-450.0,0.00021999,2]
[317928155,1710000646940,-220.0,0.00022,2]
[317928157,1710000646949,-220.0,0.00022192,2]
[317928159,1710000646958,-1063.47020445,0.00022739,2]
[317928161,1710000646969,-261.87724665,0.000229,2]
[317932258,1710000745040,-404.45303566,0.00018899,2]
[317932259,1710000745077,-745.78738975,0.00018899,2]
[317932260,1710000745106,-174.75957459,0.000189,2]
[317934178,1710000964295,-154.03827258,0.000189,2]
[317934179,1710000964317,-1345.96172742,0.00019919,2]
[317934180,1710001027713,-171.0,0.000189,2]
[317934181,1710001062054,1000.0,0.00027,120]
[317934183,1710001094980,-48.19856478,0.000189,2]
[317934184,1710001095003,-167.419657,0.00019178,2]
[317934185,1710001095026,-404.45303566,0.0001924,2]
[317934186,1710001095046,-558.30663003,0.00019241,2]
[317934187,1710001095067,-745.78738975,0.00019241,2]
[317934188,1710001095090,-157.83472278,0.00019242,2]
[317934189,1710001169928,-1951.29003649,0.00018915,2]
[317934190,1710001169949,-15255.60199628,0.00018915,2]
[317934191,1710001169969,-319.10796723,0.00018916,2]
[317934193,1710001236340,-19469.0,0.00018916,2]
[317934195,1710001430971,-306.7556832,0.00018656,2]
[317934196,1710001430995,-404.45303566,0.00018734,2]
[317934197,1710001431016,-1771.76746028,0.00018735,2]
[317934198,1710001431039,-685.464943,0.00018736,2]
[317934199,1710001431061,-155.11168041,0.00018846,2]
[317934200,1710001431086,-1864.2299082,0.00018847,2]
[317934201,1710001431109,-716.44534293,0.00018916,2]
[317934202,1710001431132,-2578.77194632,0.00018918,2]
[317934245,1710001832096,-528.57307235,0.00018908,2]
[317934246,1710001832107,-87.73646885,0.00018909,2]
[317934247,1710001832122,-316.71656681,0.00018909,2]
[317934248,1710001832132,-300.0,0.0001891,2]
[317934249,1710001832142,-7152.71070737,0.00018911,2]
[317934270,1710001839959,-13440.0,0.00018911,2]
[317934271,1710001840019,-2165.69190042,0.00018911,2]
[317934272,1710001840031,-2141.59739221,0.00018911,2]
[317934273,1710001840041,-421.2280537,0.00019014,2]
[317934274,1710001840050,-172.365091,0.00019178,2]
[317934275,1710001840059,-167.419657,0.00019178,2]
[317934276,1710001840070,-2397.0538354,0.00019322,2]
[317934277,1710001840081,-263.42601736,0.00019322,2]
[317934278,1710001840092,-1000.5257214,0.00019322,2]
[317934574,1710001843054,-490.07344012,0.00019322,2]
[317934577,1710001843069,-3241.17576712,0.00019322,2]
[317934579,1710001843078,-172.365091,0.00019977,2]
[317934581,1710001843088,-2626.8352987,0.0002,2]
[317934583,1710001843099,-4339.08689666,0.0002,2]
[317941031,1710001955928,-292.61607154,0.000189,2]
[317941032,1710001955950,-290.48375637,0.00018907,2]
[317941033,1710001955971,-200.52066789,0.00018908,2]
[317941034,1710001955992,-18333.3795042,0.00018918,2]
[317941036,1710002552356,-2114.85760717,0.00018551,2]
[317941037,1710002552376,-404.45303566,0.00018552,2]
[317941038,1710002552397,-411.3123578,0.00018553,2]
[317941039,1710002552427,-250.0,0.0001874,2]
[317941040,1710002552453,-195.07738103,0.000189,2]
[317941041,1710002552477,-300.0,0.00019003,2]
[317941042,1710002552499,-20504.55331016,0.00019004,2]
[317941043,1710002552520,-394.6343934,0.00019005,2]
[317941044,1710002552545,-315.11191478,0.00019005,2]
[317941065,1710003033625,-404.45303566,0.00019004,2]
[317941066,1710003033636,-155.11633725,0.00019005,2]
[317941067,1710003033646,-172.187721,0.00019178,2]
[317941068,1710003033655,-632.827418,0.00019301,2]
[317941069,1710003033664,-172.187721,0.00019926,2]
[317941070,1710003033673,-300.0,0.00019999,2]
[317941071,1710003033684,-680.40080372,0.0002,2]
[317941072,1710003033693,-8483.31914827,0.0002,2]
[317941073,1710003033702,-181.07569678,0.0002,2]
[317941074,1710003033711,-167.074548,0.00020455,2]
[317941075,1710003033721,-24900.0,0.00020636,2]
[317941076,1710003033730,-172.187721,0.00020674,2]
[317941077,1710003033739,-172.187721,0.00021422,2]
[317941078,1710003033748,-450.0,0.00021999,2]
[317941079,1710003033758,-165.0,0.00022,2]
[317941080,1710003033768,-220.0,0.00022,2]
[317941081,1710003033777,-165.0,0.00022192,2]
[317941082,1710003033786,-154.752193,0.00022298,2]
[317941083,1710003033796,-166.276255,0.00022298,2]
[317941084,1710003033807,-16819.82829574,0.0002268,6]
[317941085,1710003033816,-151.0,0.00022739,2]
[317941086,1710003033826,-500.0,0.00022739,2]
[317941087,1710003033835,-500.0,0.00022739,2]
[317941088,1710003033844,-500.0,0.00022739,2]
[317941089,1710003033853,-500.0,0.00022739,2]
[317941090,1710003033862,-500.0,0.00022739,2]
[317941091,1710003033872,-500.0,0.00022739,2]
[317941092,1710003033882,-500.0,0.00022739,2]
[317941093,1710003033892,-500.0,0.00022739,2]
[317941094,1710003033902,-500.0,0.00022739,2]
[317941095,1710003033912,-500.0,0.00022739,2]
[317941096,1710003033922,-500.0,0.00022739,2]
[317941097,1710003033931,-331.82858331,0.000229,2]
[317941098,1710003033940,-425.44334002,0.00022975,2]
[317941099,1710003033949,-151.0,0.00022997,2]
[317941100,1710003033959,-500.0,0.00022997,2]
[317941101,1710003033968,-500.0,0.00022997,2]
[317941102,1710003033977,-500.0,0.00022997,2]
[317941103,1710003033987,-500.0,0.00022997,2]
[317941104,1710003033996,-500.0,0.00022997,2]
[317941105,1710003034005,-500.0,0.00022997,2]
[317941106,1710003034014,-617.47040789,0.00022997,2]
[317941107,1710003034024,-500.0,0.00022997,2]
[317941108,1710003034033,-500.0,0.00022997,2]
[317941109,1710003034043,-500.0,0.00022997,2]
[317941110,1710003034053,-1668.03514243,0.00022998,2]
[317941111,1710003034065,-155.25014868,0.00022998,2]
[317941112,1710003034074,-170.16163462,0.00022998,2]
[317941113,1710003034084,-218.46610751,0.00022998,2]
[317941114,1710003034093,-1881.65756627,0.00022998,2]
[317941115,1710003034104,-325.05437374,0.00022998,2]
[317941116,1710003034113,-294.73459333,0.00022998,2]
[317941117,1710003034122,-186.43811292,0.00022998,2]
[317941118,1710003034132,-209.24833889,0.00022998,2]
[317941119,1710003034143,-155.88805604,0.00022998,2]
[317941120,1710003034153,-155.22464384,0.00022998,2]
[317941121,1710003034162,-238.79913038,0.00022998,2]
[317941122,1710003034172,-9184.65972029,0.00022998,2]
[317941123,1710003034182,-228.10225122,0.00022998,2]
[317941124,1710003034193,-429.03125533,0.00022998,2]
[317941125,1710003034202,-1605.92382438,0.00022998,2]
[317941126,1710003034211,-538.58014094,0.00022998,2]
[317941127,1710003034220,-309.90971672,0.00022998,2]
[317941128,1710003034229,-269.08197978,0.00022998,2]
[317941129,1710003034238,-5345.87399639,0.00022998,2]
[317941130,1710003034247,-743.98973532,0.00022998,2]
[317941131,1710003034256,-400.96353146,0.00022998,2]
[317941132,1710003034266,-213.82931874,0.00022998,2]
[317941133,1710003034275,-155.13341474,0.00022998,2]
[317941134,1710003034284,-316.55543465,0.00022998,2]
[317941135,1710003034293,-491.83039416,0.00022998,2]
[317941136,1710003034302,-672.73710296,0.00022998,2]
[317941137,1710003034313,-15245.12075322,0.00022998,2]
[317941138,1710003034322,-1004.82234319,0.00022998,2]
[317941139,1710003034331,-155.12409928,0.00022998,2]
[317941140,1710003034340,-155.13030946,0.00022998,2]
[317941141,1710003034349,-179.41638659,0.00022998,2]
[317941142,1710003034359,-155.1178896,0.00022998,2]
[317941143,1710003034368,-183.0815677,0.00022998,2]
[317941144,1710003034377,-528.21301095,0.00022998,2]
[317941145,1710003034387,-290.09604101,0.00022998,2]
[317941146,1710003034395,-151.0,0.00022998,2]
[317941147,1710003034405,-180.417979,0.00022998,2]
[317941148,1710003034414,-180.417979,0.00022998,2]
[317941149,1710003034422,-180.417979,0.00022998,2]
[317941150,1710003034432,-180.417979,0.00022998,2]
[317941151,1710003034441,-180.417979,0.00022998,2]
[317941152,1710003034451,-180.417979,0.00022998,2]
[317941153,1710003034460,-180.417979,0.00022998,2]
[317941154,1710003034469,-180.417979,0.00022998,2]
[317941155,1710003034478,-500.0,0.00022998,2]
[317941156,1710003034487,-913.78018431,0.00022998,2]
[317941157,1710003034497,-155.046514,0.00022998,2]
[317941158,1710003034506,-12561.2849941,0.00022998,2]
[317941159,1710003034515,-499.67215819,0.00022998,2]
[317941160,1710003034524,-500.0,0.00022998,2]
[317941161,1710003034534,-500.0,0.00022998,2]
[317941162,1710003034543,-179.05314405,0.00022998,2]
[317941199,1710003039198,-504.68947773,0.00022739,2]
[317941201,1710003039208,-1069.63248995,0.00022998,2]
[317941203,1710003039218,-1248.685634,0.00022998,2]
[317941205,1710003039227,-1248.685634,0.00022998,2]
[317941206,1710003039237,-1248.685634,0.00022998,2]
[317941207,1710003039247,-1248.685634,0.00022998,2]
[317941208,1710003039256,-1248.685634,0.00022998,2]
[317941209,1710003039266,-1248.685634,0.00022998,2]
[317941210,1710003039275,-1248.685634,0.00022998,2]
[317941211,1710003039285,-500.0,0.00022998,2]
[317941212,1710003039294,-703.96157741,0.00022999,2]
[317941213,1710003039303,-231.9908803,0.00022999,2]
[317941214,1710003039313,-309.93011064,0.00022999,2]
[317941215,1710003039323,-180.417979,0.00022999,2]
[317941216,1710003039332,-180.417979,0.00022999,2]
[317941217,1710003039342,-500.0,0.00022999,2]
[317941218,1710003039351,-500.0,0.00022999,2]
[317941219,1710003039360,-500.0,0.00022999,2]
[317941220,1710003039369,-500.0,0.00022999,2]
[317941221,1710003039378,-500.0,0.00022999,2]
[317941222,1710003039387,-500.0,0.00022999,2]
[317941223,1710003039396,-500.0,0.00022999,2]
[317941224,1710003039405,-500.0,0.00022999,2]
[317941225,1710003039414,-500.0,0.00022999,2]
[317941226,1710003039423,-384.36931566,0.00022999,2]
[317941595,1710003043356,-115.63068434,0.00022999,2]
[317941596,1710003043365,-500.0,0.00022999,2]
[317941597,1710003043375,-500.0,0.00022999,2]
[317941598,1710003043384,-500.0,0.00022999,2]
[317941600,1710003043394,-500.0,0.00022999,2]
[317941602,1710003043403,-276.16619441,0.00022999,2]
[317941604,1710003043415,-223.83380559,0.00022999,2]
[317941606,1710003043424,-88.01769041,0.00022999,2]
[317941916,1710003046343,-1596.09917428,0.00022998,2]
[317941931,1710003046480,-6887.21997399,0.00022998,2]
[317941933,1710003046489,-411.98230959,0.00022999,2]
[317941935,1710003046498,-500.0,0.00022999,2]
[317941937,1710003046507,-500.0,0.00022999,2]
[317941939,1710003046516,-482.65308395,0.00022999,2]
[317941941,1710003046525,-528.02,0.00022999,2]
[317941943,1710003046535,-500.0,0.00022999,2]
[317941945,1710003046543,-500.0,0.00022999,2]
[317941947,1710003046553,-500.0,0.00022999,2]
[317941949,1710003046567,-500.0,0.00022999,2]
[317941951,1710003046575,-500.0,0.00022999,2]
[317941953,1710003046585,-500.0,0.00022999,2]
[317941955,1710003046595,-260.48,0.00022999,2]
[317941957,1710003046606,-21.93227821,0.00022999,2]
[317944305,1710003665257,2596.0386375,0.00016691,2]
[317944374,1710004232451,-404.45303566,0.00018794,2]
[317944375,1710004232461,-558.30663003,0.00018795,2]
[317944376,1710004232470,-1186.4789348,0.00018796,2]
[317944377,1710004232479,-8000.0,0.00018899,2]
[317944378,1710004232488,-267.65621279,0.000189,2]
[317944379,1710004232497,-167.419657,0.00019604,2]
[317944380,1710004232506,-175.2389879,0.00019753,2]
[317944381,1710004232515,-316.413709,0.00019917,2]
[317944382,1710004232527,-8483.31914827,0.0002,2]
[317944383,1710004232536,-155.11633725,0.00020639,2]
[317944384,1710004232545,-24900.0,0.0002064,2]
[317944385,1710004232554,-2597.84072336,0.00020693,2]
[317944386,1710004232563,-352.76685332,0.00021,2]
[317944387,1710004232572,-909.60743129,0.00021899,2]
[317944388,1710004232581,-151.0,0.00022,2]
[317944389,1710004232591,-151.0,0.00022192,2]
[317944390,1710004232600,-1063.47020445,0.00022739,2]
[317944391,1710004232609,-500.0,0.00022739,2]
[317944392,1710004232619,-500.0,0.00022739,2]
[317944393,1710004232628,-500.0,0.00022739,2]
[317944394,1710004232637,-235.4847455,0.000228,2]
[317944395,1710004232646,-1219.83966663,0.00022897,2]
[317944396,1710004232655,-500.0,0.00022997,2]
[317944397,1710004232664,-500.0,0.00022997,2]
[317944398,1710004232673,-500.0,0.00022997,2]
[317944399,1710004232682,-500.0,0.00022997,2]
[317944400,1710004232691,-15250.36137475,0.00022998,2]
[317944401,1710004232700,-703.96157741,0.00022998,2]
[317944402,1710004232709,-9291.0927083,0.00022998,2]
[317944637,1710004240398,-3462.61920171,0.00022998,2]
[317944639,1710004240412,-5808.90019188,0.00022998,2]
[317944642,1710004240427,-1934.96264441,0.00022998,2]
[317944644,1710004240436,-155.88805604,0.00022998,2]
[317944646,1710004240446,-500.0,0.00022998,2]
[317944648,1710004240455,-745.78738975,0.00022998,2]
[317944650,1710004240464,-155.11633725,0.00022999,2]
[317944652,1710004240473,-500.0,0.00022999,2]
[317944654,1710004240482,-500.0,0.00022999,2]
[317944656,1710004240491,-500.0,0.00022999,2]
[317944658,1710004240499,-500.0,0.00022999,2]
[317944660,1710004240508,-500.0,0.00022999,2]
[317944662,1710004240517,-236.7037603,0.00022999,2]
[317944663,1710004240526,-500.0,0.00022999,2]
[317944665,1710004240535,-501.52738679,0.00022999,2]
[317944667,1710004240544,-500.0,0.00022999,2]
[317944670,1710004240553,-500.0,0.00022999,2]
[317944671,1710004240562,-500.0,0.00022999,2]
[317944673,1710004240572,-500.0,0.00022999,2]
[317944676,1710004240581,-549.23,0.00022999,2]
[317944678,1710004240590,-7607.60071994,0.00023,5]
[317944944,1710004243460,-5950.04493032,0.00023,5]
[317945203,1710004246444,-727.42881529,0.00022999,2]
[317945204,1710004246512,-3263.99367294,0.00022999,2]
[317945205,1710004246523,-4008.57751177,0.00022999,2]
[317945206,1710004246534,-7964.5884578,0.00022999,2]
[317945207,1710004246543,-16560.71881969,0.00023,5]
[317945208,1710004246555,-4882.93266493,0.00023,5]
[317946794,1710005432604,-2888.9865773,0.00017451,2]
[317946796,1710005432618,-16435.55084298,0.00017451,2]
[317946799,1710005432631,-1180.01588988,0.00017451,2]
[317946800,1710005432641,-6461.00614385,0.00017452,2]
[317946804,1710005432665,-362.95452614,0.00017452,2]
[317946806,1710005432677,-1428.73370646,0.00017452,2]
[317947144,1710005438487,-2028.24154191,0.00017282,2]
[317947343,1710005440611,-1870.01804872,0.00017282,2]
[317947345,1710005440623,-1271.94585601,0.00017282,2]
[317947347,1710005440636,-18921.25683526,0.00017282,2]
[317947349,1710005440646,-8000.0,0.00017451,2]
[317947351,1710005440655,-2987.70002968,0.00017452,2]
[317947353,1710005440665,-404.45303566,0.00017551,2]
[317947355,1710005440675,-416.288799,0.00017553,2]
[317947357,1710005440684,-300.0,0.00018524,2]
[317947359,1710005440693,-43135.67853479,0.00018525,2]
[317947361,1710005440705,-312.2633,0.00018525,2]
[317947363,1710005440717,-598.86499212,0.00018525,2]
[317947366,1710005440729,-3601.69329879,0.00018525,2]
[317947368,1710005440739,-166.69118031,0.00018532,2]
[317947369,1710005440748,-527.89243866,0.00018534,2]
[317947371,1710005440757,-309.9022082,0.00019,2]
[317947373,1710005440766,-1500.0,0.00019153,2]
[317947375,1710005440775,-500.0,0.00019178,2]
[317947377,1710005440784,-525.7525633,0.00019178,2]
[317947379,1710005440793,-351.50038163,0.00019178,2]
[317947381,1710005440802,-500.0,0.00019178,2]
[317947383,1710005440811,-500.0,0.00019178,2]
[317947385,1710005440821,-500.0,0.00019178,2]
[317947386,1710005440830,-202.16990922,0.00019178,2]
[317947389,1710005440842,-297.83009078,0.00019178,2]
[317947391,1710005440851,-489.87625085,0.00019178,2]
[317947393,1710005440861,-500.0,0.00019178,2]
[317947395,1710005440873,-500.0,0.00019178,2]
[317947397,1710005440885,-500.0,0.00019178,2]
[317947399,1710005440897,-500.0,0.00019178,2]
[317947401,1710005440909,-173.901981,0.00019178,2]
[317947404,1710005440922,-166.69118031,0.00019406,2]
[317947406,1710005440933,-527.89243866,0.00019625,2]
[317947408,1710005440945,-1500.0,0.0001967,2]
[317947410,1710005440957,-155.11323266,0.0002,2]
[317947412,1710005440967,-1500.0,0.00020187,2]
[317947414,1710005440977,-166.69118031,0.00020279,2]
[317947416,1710005440986,-167.524151,0.00020414,2]
[317947418,1710005440996,-1500.0,0.00020704,2]
[317947420,1710005441007,-527.89243866,0.00020716,2]
[317947422,1710005441018,-256.4134296,0.000209,2]
[317947424,1710005441028,-166.69118031,0.00021153,2]
[317947427,1710005441039,-1500.0,0.00021221,2]
[317947429,1710005441049,-1500.0,0.00021738,2]
[317947431,1710005441059,-527.89243866,0.00021807,2]
[317947433,1710005441070,-500.0,0.00022,7]
[317947435,1710005441083,-500.0,0.00022,7]
[317947437,1710005441093,-500.0,0.00022,7]
[317947439,1710005441104,-500.0,0.00022,7]
[317947441,1710005441115,-502.24,0.00022,7]
[317947443,1710005441125,-212.0,0.00022,2]
[317947445,1710005441136,-2638.65050803,0.00022,2]
[317947447,1710005441146,-10000.0,0.00022,2]
[317947449,1710005441156,-2759.73797734,0.00022,2]
[317947566,1710005443621,-558.30663003,0.00017451,2]
[317947567,1710005443631,-1545.69336997,0.00022,2]
[317947568,1710005443645,-1128.0,0.00022,2]
[317947569,1710005443669,-2701.75384727,0.00022,2]
[317947570,1710005443683,-6761.49427055,0.00022,2]
[317947606,1710005446625,-539.38475913,0.00022,2]
[317947607,1710005446639,-208.612028,0.00022,2]
[317947608,1710005446649,-794.21231331,0.00022,2]
[317947609,1710005446659,-151.0,0.00022,2]
[317947610,1710005446669,-166.69118031,0.00022026,2]
[317947611,1710005446681,-153.0,0.00022055,2]
[317947612,1710005446693,-212.0,0.00022192,2]
[317947613,1710005446705,-401.6956168,0.00022192,2]
[317947614,1710005446716,-295.7509939,0.00022192,2]
[317947615,1710005446728,-1500.0,0.00022255,2]
[317947616,1710005446740,-155.026354,0.00022739,2]
[317947617,1710005446750,-334.5,0.00022739,2]
[317947618,1710005446760,-263.887222,0.00022739,2]
[317947619,1710005446771,-263.887222,0.00022739,2]
[317947620,1710005446782,-1230.173046,0.00022739,2]
[317947621,1710005446792,-1230.173046,0.00022739,2]
[317947622,1710005446803,-500.0,0.00022739,2]
[317947623,1710005446814,-500.0,0.00022739,2]
[317947624,1710005446826,-500.0,0.00022739,2]
[317947625,1710005446836,-1500.0,0.00022772,2]
[317947626,1710005446848,-527.89243866,0.00022898,2]
[317947627,1710005446858,-166.69118031,0.000229,2]
[317947628,1710005446868,-475.20964697,0.00022989,2]
[317947629,1710005446878,-500.0,0.00022997,2]
[317947630,1710005446890,-310.09683996,0.00022998,2]
[317947631,1710005446901,-401.2321432,0.00022998,2]
[317947632,1710005446911,-290.38682753,0.00022998,2]
[317947633,1710005446921,-2749.79208888,0.00022998,2]
[317947634,1710005446930,-310.02015132,0.00022998,2]
[317947635,1710005446941,-703.96157741,0.00022998,2]
[317947636,1710005446951,-310.02015132,0.00022998,2]
[317947637,1710005446961,-269.08197978,0.00022998,2]
[317947638,1710005446971,-5271.29714567,0.00022998,2]
[317947639,1710005446982,-875.30218491,0.00022998,2]
[317947640,1710005446992,-157.29568872,0.00022998,2]
[317947641,1710005447002,-1668.03514243,0.00022998,2]
[317947642,1710005447012,-2596.93968143,0.00022998,2]
[317947643,1710005447022,-362.95452614,0.00022998,2]
[317947644,1710005447033,-167.530981,0.00022998,2]
[317947645,1710005447043,-167.530981,0.00022998,2]
[317947646,1710005447053,-263.887222,0.00022998,2]
[317947647,1710005447064,-263.887222,0.00022998,2]
[317947648,1710005447074,-1230.173046,0.00022998,2]
[317947649,1710005447086,-1230.173046,0.00022998,2]
[317947650,1710005447097,-151.0,0.00022998,2]
[317947651,1710005447107,-538.93657172,0.00022999,2]
[317947652,1710005447118,-9867.55054199,0.00022999,2]
[317947653,1710005447129,-151.0,0.00022999,2]
[317947654,1710005447139,-167.530981,0.00022999,2]
[317947655,1710005447149,-167.530981,0.00022999,2]
[317947656,1710005447159,-263.887222,0.00022999,2]
[317947657,1710005447170,-263.887222,0.00022999,2]
[317947658,1710005447181,-1230.173046,0.00022999,2]
[317947659,1710005447191,-1230.173046,0.00022999,2]
[317947660,1710005447201,-500.0,0.00022999,2]
[317947661,1710005447211,-500.0,0.00022999,2]
[317947662,1710005447222,-500.0,0.00022999,2]
[317947663,1710005447231,-532.36,0.00022999,2]
[317947664,1710005447242,-151.0,0.00022999,2]
[317947665,1710005447251,-5248.29102355,0.00023,5]
[317947666,1710005447264,-63200.0,0.00023,5]
[317947667,1710005447276,-184965.23705537,0.00023,5]
[317947669,1710005671115,-246.29,0.000241,35]
[317947670,1710005671174,-10.07654339,0.00024,30]
[317947703,1710006632812,-404.45303566,0.00019607,2]
[317947704,1710006632822,-155.11944197,0.00019608,2]
[317947705,1710006632918,-167.524151,0.00019615,2]
[317947706,1710006632931,-15255.60199628,0.00019823,2]
[317947707,1710006632940,-8000.0,0.00019824,2]
[317947708,1710006632950,-3220.6221588,0.00019827,2]
[317947709,1710006632959,-155.11944197,0.00020046,2]
[317947710,1710006632968,-308.670385,0.00020047,2]
[317947711,1710006632978,-394.6343934,0.00020699,2]
[317947712,1710006632988,-979.51010145,0.0002163,2]
[317947713,1710006632997,-1319.0,0.00022,2]
[317947714,1710006633007,-12822.0,0.00022,2]
[317947715,1710006633016,-222.92625601,0.00022,2]
[317947716,1710006633027,-3535.77200693,0.00022,2]
[317947717,1710006633036,-164.96638708,0.00022639,2]
[317947718,1710006633046,-164.96638708,0.00022725,2]
[317947719,1710006633056,-500.0,0.00022739,2]
[317947720,1710006633065,-500.0,0.00022739,2]
[317947721,1710006633075,-500.0,0.00022739,2]
[317947722,1710006633085,-500.0,0.00022739,2]
[317947723,1710006633094,-556.843655,0.00022739,2]
[317947724,1710006633105,-507.84581434,0.00022739,2]
[317947725,1710006633114,-164.96638708,0.00022812,2]
[317947726,1710006633124,-500.0,0.00022864,2]
[317947727,1710006633134,-500.0,0.00022864,2]
[317947728,1710006633144,-356.38460769,0.00022864,2]
[317947729,1710006633153,-500.0,0.00022864,2]
[317947730,1710006633163,-307.55358343,0.00022864,2]
[317947731,1710006633172,-500.0,0.00022864,2]
[317947732,1710006633181,-615.84543472,0.00022864,2]
[317947733,1710006633191,-500.0,0.00022864,2]
[317947734,1710006633200,-500.0,0.00022864,2]
[317947735,1710006633209,-340.36992727,0.00022864,2]
[317947736,1710006633221,-159.63007273,0.00022864,2]
[317947737,1710006633230,-500.0,0.00022864,2]
[317947738,1710006633238,-500.0,0.00022864,2]
[317947739,1710006633247,-209.34725869,0.00022865,2]
[317947771,1710006638836,-5372.43851661,0.00022865,2]
[317947904,1710006640811,-3077.17769009,0.00022865,2]
[317947905,1710006640823,-2208.56980587,0.00022865,2]
[317947906,1710006640834,-39620.69283294,0.00022865,2]
[317947907,1710006640844,-164.96638708,0.00022898,2]
[317947908,1710006640853,-309.86338182,0.00022975,2]
[317947909,1710006640866,-407.49036024,0.00022975,2]
[317947910,1710006640875,-2108.53846203,0.00022975,2]
[317947911,1710006640885,-190.33,0.00022985,2]
[317947912,1710006640894,-500.0,0.00022985,2]
[317947913,1710006640903,-500.0,0.00022985,2]
[317947914,1710006640912,-500.0,0.00022985,2]
[317947915,1710006640921,-6822.55375801,0.00022986,2]
[317947916,1710006640933,-302.8671087,0.00022986,2]
[317947917,1710006640951,-6484.3147924,0.00022986,2]
[317947940,1710006643717,-2077.81535859,0.00022986,2]
[317947942,1710006643733,-971.0,0.00022986,2]
[317947944,1710006643777,-26781.60474659,0.00022986,2]
[317947945,1710006643788,-2936.84093296,0.00022986,2]
[317947966,1710006646817,-3623.00330275,0.00022986,2]
[317947967,1710006646827,-500.0,0.00022997,2]
[317947968,1710006646836,-603.77919399,0.00022997,2]
[317947969,1710006646845,-500.0,0.00022997,2]
[317947970,1710006646854,-12180.81882606,0.00022998,2]
[317947971,1710006646865,-557.93805883,0.00022998,2]
[317947972,1710006646874,-1298.18154114,0.00022998,2]
[317947973,1710006646884,-538.93657172,0.00022998,2]
[317947974,1710006646893,-191.44250006,0.00022998,2]
[317947975,1710006646903,-534.27400208,0.00022998,2]
[317947976,1710006646912,-155.15515516,0.00022998,2]
[317947977,1710006646921,-623.95714562,0.00022998,2]
[317947978,1710006646930,-165.58722365,0.00022998,2]
[317947979,1710006646940,-186.68406057,0.00022998,2]
[317947980,1710006646949,-526.31955689,0.00022998,2]
[317947981,1710006646958,-211.91841271,0.00022998,2]
[317947982,1710006646967,-633.34701757,0.00022998,2]
[317947983,1710006646976,-612.75118413,0.00022998,2]
[317947984,1710006646986,-703.96157741,0.00022998,2]